bitfinex-derivatives/quotes_BTCF0:USTF0_20241021
["timestamp","ask_amount","ask_price","bid_price","bid_amount"]
[1729551658233,0.012,67625.0,67624.0,0.23447874]
[1729551658445,0.023,67625.0,67624.0,0.23547874]
[1729551659842,0.3608,67633.0,67631.0,0.17]
[1729551660132,0.3608,67633.0,67632.0,0.15951474]
[1729551660837,0.3608,67633.0,67632.0,0.23346974]
[1729551661139,0.3748,67633.0,67632.0,0.23346974]
[1729551661344,0.448754,67633.0,67632.0,0.15951474]
[1729551661638,0.455754,67633.0,67632.0,0.15951474]
[1729551661837,0.3818,67633.0,67632.0,0.15951474]
[1729551662044,0.455754,67633.0,67632.0,0.15951474]
[1729551662332,0.3818,67633.0,67632.0,0.16051474]
[1729551662536,0.021,67633.0,67632.0,1.66051474]
[1729551662737,0.021,67633.0,67618.0,0.17221792]
[1729551662738,0.074032,67562.0,67560.0,0.07382]
[1729551662939,0.3608,67522.0,67490.0,0.00018099]
[1729551663140,0.3608,67522.0,67455.0,0.3608]
[1729551663141,0.254801,67497.0,67483.0,0.00076]
[1729551663325,0.00222485,67524.0,67466.0,1.5]
[1729551663326,0.3608,67484.0,67468.0,0.244134]
[1729551663526,0.3608,67484.0,67465.0,0.00222349]
[1729551663833,0.3608,67493.0,67483.0,0.5933941]
[1729551664027,0.3608,67496.0,67492.0,0.5933941]
[1729551664228,0.3608,67496.0,67492.0,0.17]
[1729551664429,0.00222309,67502.0,67495.0,0.4233941]
[1729551664625,0.3608,67503.0,67501.0,0.58712533]
[1729551664837,0.3608,67503.0,67502.0,0.4233941]
[1729551666643,0.3608,67503.0,67502.0,0.3715018]
[1729551667137,0.7226,67503.0,67502.0,0.3715018]
[1729551667443,0.00117573,67503.0,67502.0,0.3715018]
[1729551667739,0.3608,67534.0,67512.0,0.074086]
[1729551667923,0.3608,67547.0,67499.0,0.52]
[1729551667924,0.3608,67541.0,67533.0,0.26]
[1729551668128,0.3608,67541.0,67540.0,0.26]
[1729551670444,0.3608,67560.0,67547.0,0.3668]
[1729551670642,0.3608,67560.0,67547.0,0.3608]
[1729551670842,0.001,67564.0,67553.0,0.3608]
[1729551671234,0.07403,67564.0,67553.0,0.3608]
[1729551671435,0.001,67558.0,67553.0,0.3608]
[1729551672343,0.07403,67564.0,67553.0,0.3628]
[1729551672643,0.36302069,67566.0,67553.0,0.3628]
[1729551673036,0.074032,67562.0,67553.0,0.3628]
[1729551673634,0.074032,67562.0,67554.0,1.5]
[1729551673835,0.3608,67555.0,67553.0,0.002]
[1729551674133,0.074043,67552.0,67536.0,0.07406]
[1729551674340,0.074043,67552.0,67538.0,1.5]
[1729551674834,0.3608,67555.0,67541.0,0.3608]
[1729551675151,0.074031,67563.0,67553.0,0.3638]
[1729551675935,0.074032,67562.0,67553.0,0.3638]
[1729551676136,0.074032,67562.0,67553.0,0.3648]
[1729551676542,0.074032,67562.0,67553.0,0.3638]
[1729551677431,0.074032,67562.0,67553.0,0.3608]
[1729551677632,0.077032,67562.0,67553.0,0.434841]
[1729551678344,0.078032,67562.0,67553.0,0.437841]
[1729551678736,0.078032,67562.0,67553.0,0.3638]
[1729551678933,0.075032,67562.0,67555.0,0.074039]
[1729551679142,0.074032,67562.0,67555.0,0.074039]
[1729551679342,0.074032,67562.0,67553.0,0.3668]
[1729551679537,0.074032,67562.0,67554.0,0.07404]
[1729551679743,0.074032,67562.0,67556.0,0.074038]
[1729551679942,0.3608,67560.0,67556.0,0.074038]
[1729551680647,0.3608,67560.0,67546.0,0.3608]
[1729551680836,0.3608,67560.0,67555.0,0.076039]
[1729551681652,0.3608,67560.0,67559.0,0.074035]
[1729551682355,0.3618,67560.0,67559.0,0.074035]
[1729551682543,0.3618,67560.0,67557.0,0.074037]
[1729551682742,0.3618,67560.0,67547.0,0.074048]
[1729551682942,0.3648,67560.0,67558.0,0.074035]
[1729551683547,0.3618,67560.0,67558.0,0.074035]
[1729551683848,0.3638,67560.0,67559.0,0.074035]
[1729551684052,0.3638,67560.0,67559.0,0.078035]
[1729551684645,0.3638,67560.0,67559.0,0.074035]
[1729551684956,0.3648,67560.0,67559.0,0.074035]
[1729551685340,0.3648,67560.0,67546.0,0.3608]
[1729551685548,0.3648,67560.0,67531.0,0.074065]
[1729551685549,0.074057,67539.0,67531.0,0.074065]
[1729551685847,0.3608,67543.0,67540.0,0.074055]
[1729551686752,0.3608,67543.0,67533.0,0.3608]
[1729551686959,0.3608,67552.0,67551.0,0.074044]
[1729551687850,0.3608,67552.0,67551.0,1.574044]
[1729551688660,0.3608,67552.0,67551.0,1.5]
[1729551688848,0.3618,67552.0,67551.0,1.5]
[1729551689059,0.7518,67552.0,67542.0,0.3608]
[1729551689257,0.7518,67552.0,67530.0,0.074066]
[1729551689258,0.074059,67537.0,67530.0,0.074066]
[1729551689551,0.074056,67540.0,67532.0,0.074064]
[1729551689757,0.074056,67540.0,67531.0,1.5008]
[1729551689956,0.074056,67540.0,67534.0,0.074062]
[1729551690156,0.074057,67539.0,67534.0,0.074062]
[1729551690647,0.074052,67544.0,67538.0,0.3608]
[1729551690854,0.3618,67552.0,67538.0,0.3608]
[1729551690855,0.074046,67549.0,67543.0,0.074051]
[1729551691244,0.3608,67544.0,67531.0,1.51376]
[1729551691445,0.464064,67532.0,67531.0,1.513]
[1729551691661,0.3608,67537.0,67531.0,1.513]
[1729551691662,0.82486,67537.0,67531.0,1.513]
[1729551691861,0.074055,67541.0,67535.0,0.074061]
[1729551692051,0.074057,67539.0,67533.0,0.074063]
[1729551692354,0.3608,67544.0,67531.0,1.51376]
[1729551692548,0.074055,67541.0,67531.0,1.513]
[1729551692749,0.074055,67541.0,67536.0,0.07406]
[1729551692954,0.3608,67544.0,67531.0,1.50076]
[1729551693259,0.3608,67544.0,67541.0,0.074054]
[1729551693450,0.001,67537.0,67536.0,0.434859]
[1729551693648,0.3608,67544.0,67536.0,0.805]
[1729551693844,0.3608,67544.0,67539.0,0.074057]
[1729551694043,0.3608,67544.0,67540.0,0.074056]
[1729551694251,0.3618,67544.0,67540.0,0.074056]
[1729551694461,0.435851,67544.0,67541.0,0.004]
[1729551694658,0.075051,67544.0,67541.0,0.004]
[1729551694856,0.074052,67543.0,67541.0,0.004]
[1729551695160,0.001,67544.0,67541.0,0.004]
[1729551695368,0.074064,67532.0,67531.0,1.50076]
[1729551695664,0.074064,67532.0,67531.0,1.5]
[1729551696255,0.26,67541.0,67531.0,1.5]
[1729551696256,0.07406,67537.0,67531.0,1.5]
[1729551696451,0.074059,67537.0,67531.0,1.574065]
[1729551696771,0.3608,67532.0,67531.0,0.007]
[1729551697061,0.3608,67532.0,67531.0,1.507]
[1729551697062,0.434864,67532.0,67531.0,1.507]
[1729551697361,0.434864,67532.0,67520.0,0.26]
[1729551697362,0.074064,67532.0,67520.0,0.26]
[1729551697554,0.3608,67542.0,67535.0,0.074061]
[1729551697555,0.075059,67537.0,67535.0,0.074061]
[1729551697772,0.001,67537.0,67536.0,0.07406]
[1729551698456,0.001,67537.0,67536.0,0.77826]
[1729551698660,0.3608,67542.0,67536.0,0.7042]
[1729551698958,0.3608,67542.0,67541.0,0.074055]
[1729551699356,0.3608,67542.0,67535.0,1.50076]
[1729551699549,0.3608,67542.0,67535.0,1.5]
[1729551699747,0.00222152,67556.0,67538.0,0.3608]
[1729551699959,0.00222152,67556.0,67543.0,0.074052]
[1729551700463,0.074049,67547.0,67543.0,0.074052]
[1729551701564,0.074047,67549.0,67543.0,0.074052]
[1729551701760,0.00222152,67556.0,67545.0,0.3608]
[1729551702168,0.074045,67550.0,67547.0,0.074048]
[1729551702373,0.074046,67549.0,67547.0,0.074048]
[1729551702862,0.00222152,67556.0,67547.0,0.074048]
[1729551703053,0.00222152,67556.0,67543.0,0.001]
[1729551703054,0.26,67551.0,67543.0,0.001]
[1729551703253,0.00222152,67556.0,67519.0,0.3608]
[1729551703254,0.3608,67545.0,67519.0,0.3608]
[1729551703559,0.07406,67537.0,67533.0,0.074063]
[1729551703758,0.07406,67537.0,67534.0,1.5]
[1729551704164,0.3608,67545.0,67534.0,1.5]
[1729551704165,0.07406,67536.0,67534.0,1.5]
[1729551704661,0.074055,67541.0,67537.0,0.074059]
[1729551704851,0.3608,67545.0,67537.0,0.074059]
[1729551704852,0.074058,67539.0,67537.0,0.074059]
[1729551705052,0.074058,67539.0,67534.0,1.8618]
[1729551705773,0.074058,67539.0,67515.0,0.3608]
[1729551705774,0.074062,67534.0,67515.0,0.3608]
[1729551706067,0.074079,67519.0,67515.0,0.3608]
[1729551706253,0.074079,67519.0,67516.0,1.5]
[1729551706456,0.3608,67529.0,67518.0,0.26]
[1729551706457,0.074071,67527.0,67518.0,0.26]
[1729551706663,0.074071,67527.0,67523.0,0.26]
[1729551706962,0.074071,67527.0,67517.0,0.26]
[1729551707262,0.074071,67527.0,67519.0,0.074079]
[1729551707655,0.3608,67529.0,67516.0,1.5]
[1729551707656,0.26,67536.0,67524.0,0.3608]
[1729551707853,0.074065,67532.0,67528.0,0.26]
[1729551708158,0.074065,67532.0,67531.0,0.3608]
[1729551708361,0.001,67534.0,67531.0,0.3608]
[1729551708549,0.001,67534.0,67532.0,0.26]
[1729551708749,0.074061,67536.0,67533.0,1.5]
[1729551708953,0.3608,67539.0,67533.0,1.5]
[1729551709166,0.074062,67534.0,67533.0,1.5]
[1729551709750,0.074062,67534.0,67533.0,1.76]
[1729551709953,0.001,67536.0,67533.0,2.20424]
[1729551710156,0.006,67536.0,67534.0,0.074062]
[1729551710564,0.08006,67536.0,67534.0,0.518262]
[1729551710867,0.07906,67536.0,67534.0,0.518262]
[1729551711566,0.07406,67536.0,67535.0,0.074061]
[1729551711955,0.07406,67536.0,67535.0,0.518261]
[1729551712265,0.07406,67536.0,67535.0,0.07869173]
[1729551712451,0.07506,67536.0,67535.0,0.07869173]
[1729551712652,0.001,67536.0,67535.0,0.07869173]
[1729551712961,0.001,67536.0,67535.0,0.077061]
[1729551713165,0.3608,67543.0,67535.0,0.003]
[1729551713473,0.074056,67540.0,67537.0,0.074058]
[1729551713768,0.3608,67543.0,67537.0,0.074058]
[1729551713969,0.3608,67543.0,67535.0,0.003]
[1729551714167,0.001,67536.0,67535.0,0.077061]
[1729551714363,0.001,67536.0,67535.0,0.08169166]
[1729551714559,0.001,67536.0,67535.0,0.07869166]
[1729551714762,0.001,67536.0,67535.0,0.08169166]
[1729551715566,0.074056,67540.0,67539.0,0.074057]
[1729551715774,0.074056,67540.0,67539.0,0.434857]
[1729551716068,0.3608,67553.0,67541.0,0.074054]
[1729551716069,0.074054,67542.0,67541.0,0.074054]
[1729551716562,0.074046,67549.0,67541.0,0.43948438]
[1729551716867,0.074046,67549.0,67548.0,0.074047]
[1729551718272,0.083046,67549.0,67548.0,0.075047]
[1729551718576,0.009,67549.0,67548.0,0.075047]
[1729551718766,0.083046,67549.0,67548.0,0.075047]
[1729551719163,0.077046,67549.0,67548.0,0.074047]
[1729551719561,0.085046,67549.0,67548.0,0.0786769]
[1729551720292,0.005,67549.0,67548.0,0.0786769]
[1729551720575,0.002,67549.0,67548.0,0.0786769]
[1729551720774,0.005,67549.0,67548.0,0.0786769]
[1729551720968,0.003,67549.0,67548.0,0.0786769]
[1729551721268,0.002,67549.0,67548.0,0.074047]
[1729551721474,0.005,67549.0,67548.0,1.57867677]
[1729551721669,0.005,67549.0,67548.0,1.574047]
[1729551721872,0.3608,67568.0,67548.0,2.02279652]
[1729551722074,1e-08,67556.0,67555.0,0.694839]
[1729551722274,1e-08,67556.0,67555.0,0.69946852]
[1729551722478,1e-08,67556.0,67555.0,1.14354852]
[1729551722771,1e-08,67556.0,67555.0,2.70257857]
[1729551723181,1e-08,67556.0,67555.0,2.64354852]
[1729551723476,1e-08,67556.0,67555.0,2.70254265]
[1729551724066,0.00800001,67556.0,67555.0,2.70254265]
[1729551724262,0.69613328,67573.0,67555.0,2.62950365]
[1729551724482,0.074017,67576.0,67571.0,0.3608]
[1729551724668,0.074017,67575.0,67574.0,0.26]
[1729551725466,0.074017,67575.0,67574.0,0.334018]
[1729551725778,0.3608,67583.0,67576.0,0.074016]
[1729551725972,0.074013,67580.0,67577.0,0.074015]
[1729551726173,0.00222051,67585.0,67571.0,0.3608]
[1729551726174,0.074013,67579.0,67578.0,0.694813]
[1729551726564,0.00222051,67585.0,67580.0,0.074011]
[1729551726884,0.084009,67583.0,67578.0,0.6208]
[1729551727064,0.084009,67583.0,67582.0,0.33401]
[1729551727667,0.073993,67598.0,67586.0,0.074005]
[1729551727878,0.073993,67598.0,67582.0,1.03793]
[1729551727879,0.073993,67598.0,67596.0,0.26]
[1729551729175,0.073993,67598.0,67596.0,0.333994]
[1729551730182,0.2908,67608.0,67598.0,0.073992]
[1729551730183,0.073988,67602.0,67598.0,0.073992]
[1729551730369,0.073988,67602.0,67596.0,0.334994]
[1729551730370,0.01,67597.0,67596.0,0.334994]
[1729551731077,0.073988,67602.0,67600.0,0.073989]
[1729551731277,0.073988,67602.0,67601.0,0.073989]
[1729551731664,0.073988,67602.0,67596.0,0.264]
[1729551731873,0.073988,67602.0,67600.0,0.26]
[1729551732178,0.073983,67607.0,67603.0,0.073986]
[1729551732479,0.073983,67607.0,67605.0,0.26]
[1729551732670,0.073976,67613.0,67609.0,0.07398]
[1729551732971,0.073976,67613.0,67609.0,0.33398]
[1729551733375,0.073977,67612.0,67609.0,0.33398]
[1729551733672,0.073978,67611.0,67605.0,0.262]
[1729551733872,0.073978,67611.0,67610.0,0.073979]
[1729551734085,0.073974,67615.0,67612.0,0.073976]
[1729551734265,0.073976,67613.0,67612.0,0.073976]
[1729551734582,0.3608,67621.0,67614.0,0.073974]
[1729551734770,0.073977,67612.0,67608.0,0.073981]
[1729551734965,0.26,67618.0,67608.0,0.073981]
[1729551734966,0.07398,67609.0,67608.0,0.073981]
[1729551735277,0.073975,67614.0,67609.0,0.07398]
[1729551735469,0.002,67613.0,67610.0,0.073978]
[1729551735664,0.002,67613.0,67612.0,0.333977]
[1729551736173,0.073975,67614.0,67612.0,0.333977]
[1729551736580,0.073976,67613.0,67612.0,0.26]
[1729551736778,0.073976,67613.0,67612.0,0.333977]
[1729551738488,0.005,67614.0,67607.0,0.3608]
[1729551738671,0.3608,67609.0,67596.0,0.26]
[1729551738871,0.073984,67606.0,67596.0,0.26]
[1729551739170,0.073984,67606.0,67601.0,0.073988]
[1729551739365,0.073984,67606.0,67596.0,0.44412]
[1729551739572,0.073984,67606.0,67603.0,0.073986]
[1729551739781,0.073984,67606.0,67604.0,0.073985]
[1729551740383,0.073984,67606.0,67605.0,0.073984]
[1729551741480,0.3608,67609.0,67601.0,0.26]
[1729551741679,0.3608,67609.0,67605.0,0.26]
[1729551741872,0.3608,67609.0,67608.0,0.073981]
[1729551743273,0.3608,67609.0,67605.0,0.26]
[1729551743274,0.3608,67622.0,67607.0,0.3608]
[1729551743476,0.073972,67616.0,67615.0,0.333973]
[1729551744782,0.434772,67616.0,67615.0,0.333973]
[1729551745983,0.442772,67616.0,67615.0,0.334973]
[1729551746685,0.442772,67616.0,67615.0,0.335973]
[1729551747873,0.442772,67616.0,67615.0,0.001]
[1729551748180,0.442772,67616.0,67615.0,0.002]
[1729551748784,0.434772,67616.0,67615.0,0.001]
[1729551748980,0.442772,67616.0,67615.0,0.002]
[1729551752389,1.07248,67616.0,67600.0,0.6208]
[1729551752688,0.073974,67615.0,67607.0,0.073982]
[1729551752881,0.073973,67615.0,67614.0,0.26]
[1729551753079,0.073973,67615.0,67614.0,0.333974]
[1729551753282,0.3688,67616.0,67605.0,0.26]
[1729551753692,0.073976,67614.0,67613.0,0.073974]
[1729551753892,0.3688,67616.0,67615.0,0.073973]
[1729551754099,0.3688,67616.0,67615.0,0.333973]
[1729551754592,0.3618,67616.0,67615.0,0.333973]
[1729551755291,0.3608,67616.0,67615.0,0.333973]
[1729551755487,0.3688,67616.0,67615.0,0.334973]
[1729551756085,0.008,67616.0,67615.0,0.334973]
[1729551756494,0.06138944,67616.0,67615.0,0.334973]
[1729551756697,0.06338944,67616.0,67615.0,0.335973]
[1729551757080,0.01,67616.0,67615.0,0.335973]
[1729551758193,0.00221913,67630.0,67615.0,0.70568]
[1729551758393,0.05359337,67629.0,67627.0,0.26]
[1729551758598,0.12755237,67628.0,67627.0,0.33396]
[1729551759296,0.05359337,67628.0,67627.0,0.33396]
[1729551759497,0.05359337,67628.0,67627.0,0.26]
[1729551759690,0.05459337,67628.0,67627.0,0.33496]
[1729551760382,0.05459337,67628.0,67627.0,0.001]
[1729551760383,0.074959,67628.0,67627.0,0.001]
[1729551760695,0.12913575,67628.0,67627.0,0.001]
[1729551761087,0.14013575,67628.0,67627.0,0.002]
[1729551761794,0.073965,67624.0,67623.0,0.073965]
[1729551763696,0.073965,67624.0,67623.0,0.074965]
[1729551764002,0.085965,67624.0,67623.0,0.075965]
[1729551764395,0.085965,67624.0,67623.0,0.245965]
[1729551764991,0.012,67624.0,67623.0,0.245965]
[1729551770901,0.073952,67635.0,67633.0,0.073954]
[1729551771204,0.12772718,67634.0,67633.0,0.073954]
[1729551773110,0.12772718,67634.0,67633.0,0.074954]
[1729551773607,0.12872718,67634.0,67633.0,0.075954]
[1729551776804,0.074953,67634.0,67633.0,0.075954]
[1729551777894,0.244953,67634.0,67633.0,0.002]
[1729551779412,0.688513,67634.0,67633.0,0.002]
[1729551779606,0.688513,67634.0,67614.0,0.073974]
[1729551779607,0.243975,67615.0,67614.0,0.073974]
[1729551779803,0.073975,67614.0,67613.0,0.3608]
[1729551780322,0.17,67615.0,67611.0,1.574858]
[1729551780323,0.073977,67612.0,67611.0,1.574858]
[1729551780502,0.073977,67612.0,67611.0,1.573978]
[1729551780902,0.07398,67609.0,67606.0,0.073982]
[1729551781108,0.5308,67609.0,67596.0,0.3608]
[1729551781309,0.5308,67597.0,67585.0,0.04428416]
[1729551781501,0.5308,67597.0,67582.0,0.3608]
[1729551781502,0.074006,67585.0,67583.0,0.04428416]
[1729551781814,0.074006,67585.0,67579.0,0.17]
[1729551782112,0.17,67582.0,67575.0,0.3608]
[1729551782419,0.17,67578.0,67575.0,0.3608]
[1729551782801,0.074015,67577.0,67575.0,0.3608]
[1729551783298,0.074015,67577.0,67575.0,0.3708]
[1729551784510,0.3608,67585.0,67578.0,0.074014]
[1729551784511,0.3608,67579.0,67578.0,0.074014]
[1729551784712,0.3608,67579.0,67578.0,0.244014]
[1729551785009,0.073979,67611.0,67578.0,0.17]
[1729551785010,0.3608,67593.0,67578.0,0.17]
[1729551785196,0.073999,67592.0,67591.0,0.17]
[1729551785911,0.074,67591.0,67588.0,0.074003]
[1729551786214,0.074001,67590.0,67587.0,0.17]
[1729551786799,0.074002,67589.0,67587.0,0.17]
[1729551787827,0.074003,67588.0,67587.0,0.17]
[1729551788116,0.074003,67588.0,67586.0,0.074005]
[1729551788798,0.074003,67588.0,67586.0,1.574005]
[1729551789199,0.074004,67587.0,67586.0,1.574005]
[1729551790012,0.074004,67587.0,67586.0,1.576005]
[1729551790411,0.077004,67587.0,67586.0,1.576005]
[1729551790611,0.077004,67587.0,67586.0,0.076005]
[1729551790814,0.077004,67587.0,67584.0,0.17]
[1729551791017,0.074006,67586.0,67584.0,0.17]
[1729551791206,0.074006,67586.0,67584.0,1.67]
[1729551791817,0.074006,67585.0,67584.0,1.67]
[1729551792518,0.074006,67585.0,67584.0,1.502]
[1729551792709,0.074006,67585.0,67584.0,0.002]
[1729551798506,0.074006,67585.0,67584.0,0.172]
[1729551798708,0.3608,67593.0,67584.0,0.172]
[1729551798914,0.434798,67593.0,67592.0,0.17]
[1729551799411,0.3608,67593.0,67588.0,0.17]
[1729551799740,0.074002,67589.0,67588.0,0.244003]
[1729551800025,0.434799,67593.0,67592.0,0.073999]
[1729551800214,0.443799,67593.0,67592.0,0.171]
[1729551800818,0.443799,67593.0,67592.0,0.244999]
[1729551801019,0.009,67593.0,67592.0,0.244999]
[1729551801427,0.009,67593.0,67592.0,0.605799]
[1729551801725,0.002,67593.0,67592.0,0.604799]
[1729551801927,0.073989,67601.0,67592.0,0.5308]
[1729551802123,0.073984,67606.0,67603.0,0.073987]
[1729551802328,0.07620167,67607.0,67606.0,0.11879408]
[1729551803117,0.07620167,67607.0,67606.0,0.19277708]
[1729551804022,0.3608,67608.0,67607.0,0.073982]
[1729551805224,0.3608,67608.0,67606.0,0.11979408]
[1729551805225,0.36567208,67621.0,67614.0,0.073974]
[1729551805427,0.002,67608.0,67606.0,0.3618]
[1729551805629,0.073973,67616.0,67613.0,0.073975]
[1729551805928,0.073974,67615.0,67613.0,0.073975]
[1729551806130,0.36567208,67621.0,67614.0,0.17]
[1729551806332,0.073982,67607.0,67606.0,0.434783]
[1729551806525,0.36567208,67621.0,67606.0,0.3608]
[1729551806831,0.073981,67608.0,67607.0,0.073981]
[1729551807218,0.073982,67607.0,67606.0,0.3608]
[1729551807419,0.073983,67606.0,67605.0,0.0317]
[1729551807616,0.3608,67613.0,67604.0,0.00076]
[1729551807617,0.073984,67605.0,67604.0,0.00076]
[1729551807825,0.073984,67605.0,67593.0,0.17]
[1729551808024,0.073996,67594.0,67593.0,0.17]
[1729551808836,0.073996,67594.0,67593.0,1.67]
[1729551809529,0.073996,67594.0,67593.0,1.673]
[1729551810926,0.243996,67594.0,67586.0,0.3921]
[1729551811124,0.3608,67587.0,67578.0,0.3608]
[1729551811321,0.074011,67581.0,67580.0,0.244012]
[1729551812028,0.074011,67581.0,67580.0,0.17]
[1729551812422,0.3618,67587.0,67581.0,0.07401]
[1729551812822,0.07401,67582.0,67581.0,0.07401]
[1729551815135,0.07401,67582.0,67581.0,0.08101]
[1729551815939,0.07401,67582.0,67581.0,0.08001]
[1729551817936,0.36216,67594.0,67581.0,0.006]
[1729551818236,0.073999,67592.0,67591.0,0.17]
[1729551818828,0.073999,67592.0,67591.0,0.244]
[1729551820634,0.3608,67594.0,67593.0,0.073998]
[1729551820635,0.434797,67594.0,67593.0,0.073998]
[1729551821037,0.3608,67594.0,67593.0,0.073998]
[1729551821743,0.3608,67594.0,67593.0,1.573998]
[1729551822047,0.073989,67602.0,67599.0,0.073991]
[1729551822248,0.073989,67602.0,67601.0,0.17]
[1729551822747,0.00221961,67605.0,67601.0,0.17]
[1729551822939,0.00221961,67605.0,67604.0,0.073986]
[1729551823838,0.00221961,67605.0,67604.0,1.934786]
[1729551824839,0.00321961,67605.0,67604.0,1.934786]
[1729551825438,0.00721961,67605.0,67604.0,1.934786]
[1729551825840,0.00721961,67605.0,67604.0,2.104786]
[1729551825841,0.00321961,67605.0,67604.0,2.104786]
[1729551826040,0.00321961,67605.0,67604.0,2.105786]
[1729551826546,0.00221961,67605.0,67604.0,2.105786]
[1729551826740,0.00221961,67605.0,67604.0,2.108786]
[1729551827136,0.07620361,67605.0,67604.0,2.108786]
[1729551827935,0.073984,67605.0,67604.0,2.108786]
[1729551833947,0.5308,67615.0,67604.0,2.0348]
[1729551834148,0.07398,67609.0,67608.0,0.17]
[1729551836345,0.07498,67609.0,67608.0,0.17]
[1729551837040,0.43878,67609.0,67608.0,0.17]
[1729551837860,0.07798,67609.0,67608.0,0.17]
[1729551840149,0.07798,67609.0,67608.0,0.243981]
[1729551841042,0.004,67609.0,67608.0,0.243981]
[1729551841244,0.3608,67622.0,67608.0,0.61372]
[1729551841450,0.3608,67622.0,67621.0,0.17]
[1729551841653,0.434766,67622.0,67621.0,0.17]
[1729551842352,0.43980847,67622.0,67621.0,0.17]
[1729551843256,0.43980847,67622.0,67621.0,0.243967]
[1729551843257,0.073966,67622.0,67621.0,0.243967]
[1729551843459,0.073966,67622.0,67621.0,0.17]
[1729551843963,0.082966,67622.0,67621.0,0.171]
[1729551844559,0.009,67622.0,67621.0,0.245967]
[1729551844863,0.082966,67622.0,67621.0,0.245967]
[1729551852247,0.082966,67622.0,67621.0,0.002]
[1729551852454,0.073982,67607.0,67604.0,0.00076]
[1729551852660,0.073982,67607.0,67597.0,0.243992]
[1729551852958,0.073982,67607.0,67598.0,0.14704867]
[1729551853164,0.073987,67603.0,67598.0,0.07305667]
[1729551853348,0.604787,67603.0,67598.0,0.07305667]
[1729551853662,1.048547,67603.0,67598.0,0.07305667]
[1729551854348,1.048547,67603.0,67602.0,0.06344534]
[1729551854554,1.048547,67603.0,67602.0,0.005]
[1729551854862,1.048547,67603.0,67602.0,0.008]
[1729551855166,0.073991,67599.0,67598.0,0.07305667]
[1729551855370,0.243991,67599.0,67598.0,0.07305667]
[1729551856263,0.073994,67597.0,67595.0,0.04430057]
[1729551856466,0.073994,67596.0,67595.0,0.04430057]
[1729551857351,0.073994,67596.0,67595.0,0.05630057]
[1729551857868,0.073994,67596.0,67595.0,0.012]
[1729551858366,0.074994,67596.0,67595.0,0.022]
[1729551859164,0.001,67596.0,67595.0,0.01]
[1729551859364,0.002,67596.0,67595.0,0.094995]
[1729551859870,0.075994,67596.0,67595.0,0.094995]
[1729551863056,0.002,67596.0,67595.0,0.094995]
[1729551866957,0.001,67596.0,67595.0,0.092995]
[1729551867275,0.001,67596.0,67595.0,0.090995]
[1729551867756,0.3608,67597.0,67595.0,0.009]
[1729551867957,0.3608,67597.0,67596.0,0.073994]
[1729551868467,0.3608,67597.0,67596.0,1.573994]
[1729551869366,0.3608,67597.0,67596.0,1.578994]
[1729551869963,0.07399,67600.0,67597.0,0.073992]
[1729551872165,0.07399,67600.0,67597.0,0.074992]
[1729551872369,0.53216,67602.0,67601.0,0.073989]
[1729551872370,0.00136,67602.0,67601.0,0.073989]
[1729551872564,0.073984,67606.0,67605.0,0.073984]
[1729551872872,0.16696,67613.0,67608.0,0.07398]
[1729551872873,0.073981,67609.0,67608.0,0.07398]
[1729551873470,0.36208,67610.0,67605.0,0.17]
[1729551873665,0.3608,67610.0,67609.0,0.07398]
[1729551875076,0.3608,67610.0,67608.0,0.17]
[1729551875372,0.073983,67606.0,67605.0,0.171]
[1729551875570,0.073983,67606.0,67605.0,0.17]
[1729551875873,0.073984,67605.0,67604.0,0.073985]
[1729551877378,0.001,67605.0,67604.0,0.243985]
[1729551877672,0.3608,67610.0,67604.0,0.243985]
[1729551877978,0.3608,67610.0,67609.0,0.07398]
[1729551879075,0.3628,67610.0,67609.0,0.07398]
[1729551880176,0.002,67610.0,67609.0,0.07398]
[1729551880368,0.006,67610.0,67609.0,0.07398]
[1729551884369,0.073969,67619.0,67609.0,0.073979]
[1729551884573,0.073971,67617.0,67616.0,0.073972]
[1729551884770,0.00708581,67623.0,67615.0,0.0454]
[1729551884984,0.073972,67616.0,67615.0,0.0454]
[1729551886579,0.079972,67616.0,67615.0,0.0464]
[1729551886984,0.079972,67616.0,67615.0,0.0474]
[1729551887586,0.088972,67616.0,67615.0,0.0474]
[1729551890185,0.088972,67616.0,67615.0,0.002]
[1729551896375,0.09395837,67616.0,67615.0,0.002]
[1729551899091,0.26395837,67616.0,67615.0,0.002]
[1729551900482,0.09395837,67616.0,67615.0,0.002]
[1729551900693,0.26395837,67616.0,67615.0,0.002]
[1729551902289,0.20395837,67616.0,67615.0,0.002]
[1729551902979,0.09395837,67616.0,67615.0,0.002]
[1729551904379,0.20395837,67616.0,67615.0,0.002]
[1729551904791,0.09395837,67616.0,67615.0,0.002]
[1729551904998,0.20395837,67616.0,67615.0,0.002]
[1729551905682,0.09395837,67616.0,67615.0,0.002]
[1729551905999,0.20395837,67616.0,67615.0,0.002]
[1729551907501,0.09395837,67616.0,67615.0,0.002]
[1729551909305,0.015,67616.0,67615.0,0.222]
[1729551909501,0.00221894,67623.0,67622.0,0.073966]
[1729551909707,0.3608,67630.0,67621.0,0.11]
[1729551909708,0.073963,67625.0,67621.0,0.11]
[1729551909895,0.11,67627.0,67622.0,1.5]